[Event "CZE-tht Extraliga 2017-18"]
[Site "Czech Republic"]
[Date "2017.12.03"]
[Round "4.6"]
[White "Obsivac, Josef"]
[Black "Belunek, Vladimir"]
[Result "1-0"]
[ECO "D52"]
[WhiteElo "2338"]
[BlackElo "2214"]
[Annotator "RC"]
[PlyCount "69"]
[EventDate "2017.??.??"]
[EventType "team-tourn"]
[EventCountry "CZE"]
[SourceTitle "playchess.com"]
[Source "ChessBase"]
[SourceQuality "1"]
[TimeControl "40/5400+30:1800+30"]

1. d4 {[%emt 0:00:00]} Nf6 {[%emt 0:00:15]} 2. c4 {[%emt 0:00:00]} e6 {[%emt 0:00:10]} 3. Nf3 {[%emt 0:03:30]} d5 {[%emt 0:05:12]} 4. Nc3 {[%emt 0:00:41]} c6 {[%emt 0:00:26]} 5. Bg5 {[%emt 0:05:01]} Nbd7 {[%emt 0:01:21]} 6. e3 {[%emt 0:00:45]} Qa5 {[%emt 0:00:50]} 7. cxd5 {[%emt 0:01:45]} exd5 {[%emt 0:01:10]} 8. Bd3 {[%emt 0:10:46]} Ne4 {[%emt 0:02:08]} 9. O-O {[%emt 0:03:41]} Nxg5 {[%emt 0:03:23]} 10. Nxg5 {[%emt 0:00:09]} Be7 {[%emt 0:00:57]} 11. f4 {[%emt 0:08:23]} Nf6 {[%emt 0:03:56]} 12. Qc2 {[%emt 0:04:49]} h6 {[%emt 0:00:52]} 13. Nf3 {[%emt 0:00:11]} O-O {[%emt 0:00:20]} 14. h3 {[%emt 0:08:29]} c5 {[%emt 0:00:41]} 15. Qf2 {[%emt 0:01:27]} c4 {[%emt 0:23:53]} 16. Bc2 {[%emt 0:01:12]} Bb4 {[%emt 0:04:51]} 17. Rfc1 {[%emt 0:02:31]} Be6 {[%emt 0:12:55]} 18. Ne5 {[%emt 0:05:26]} Bxc3 {[%emt 0:03:59]} 19. bxc3 {[%emt 0:00:06]} Nd7 {[%emt 0:00:31]} 20. f5 {[%emt 0:13:33]} Nxe5 {[%emt 0:02:07]} 21. dxe5 {[%emt 0:00:03]} Bd7 {[%emt 0:00:16]} 22. f6 {[%emt 0:04:40]} g6 {[%emt 0:00:43]} 23. Qg3 {[%emt 0:05:08]} Kh7 {[%emt 0:00:13]} 24. Rab1 {[%emt 0:08:21]} Qc7 {[%emt 0:00:47]} 25. Rd1 {[%emt 0:00:22]} Be6 {[%emt 0:00:59]} 26. Rd4 {[%emt 0:00:23]} Rh8 {[%emt 0:01:52]} 27. Rbd1 {[%emt 0:05:48]} Rad8 {[%emt 0:01:51]} 28. Kh1 {[%emt 0:00:44]} b5 {[%emt 0:01:52]} 29. Rf1 {[%emt 0:01:42]} Rd7 {[%emt 0:04:01]} 30. Rf3 {[%emt 0:01:25]} Qb8 {[%emt 0:00:54]} 31. Rh4 {[%emt 0:00:42]} Qf8 {[%emt 0:01:23]} 32. Rff4 {[%emt 0:01:01]} a5 {[%emt 0:00:59]} 33. Rh5 {[%emt 0:01:01]} b4 {[%emt 0:06:51]} 34. Rfh4 {[%emt 0:00:12]} Kg8 {[%emt 0:00:20]} 35. Bxg6 {[%emt 0:00:36]} 1-0

[Event "CZE-tht Extraliga 2017-18"]
[Site "Czech Republic"]
[Date "2017.12.03"]
[Round "4.8"]
[White "Vyskocil, Neklan"]
[Black "Jasny, Stanislav"]
[Result "0-1"]
[ECO "B07"]
[WhiteElo "2321"]
[BlackElo "2362"]
[Annotator "RC"]
[PlyCount "144"]
[EventDate "2017.??.??"]
[EventType "team-tourn"]
[EventCountry "CZE"]
[SourceTitle "playchess.com"]
[Source "ChessBase"]
[SourceQuality "1"]
[TimeControl "40/5400+30:1800+30"]

1. e4 {[%emt 0:00:00]} d6 {[%emt 0:00:19]} 2. d4 {[%emt 0:00:00]} Nf6 {[%emt 0:00:06]} 3. Nc3 {[%emt 0:00:00]} g6 {[%emt 0:00:06]} 4. Bc4 {[%emt 0:00:43]} Bg7 {[%emt 0:01:32]} 5. Qe2 {[%emt 0:00:10]} c6 {[%emt 0:05:44]} 6. e5 {[%emt 0:00:24]} dxe5 {[%emt 0:02:23]} 7. dxe5 {[%emt 0:00:04]} Nd5 {[%emt 0:00:11]} 8. Bd2 {[%emt 0:00:28]} O-O {[%emt 0:01:14]} 9. O-O-O {[%emt 0:00:21]} Na6 {[%emt 0:13:42]} 10. Nf3 {[%emt 0:14:59]} Nac7 {[%emt 0:01:00]} 11. Rhe1 {[%emt 0:02:56]} b5 {[%emt 0:04:45]} 12. Bxd5 {[%emt 0:11:30]} Nxd5 {[%emt 0:02:26]} 13. Kb1 {[%emt 0:00:21]} Nxc3+ {[%emt 0:06:31]} 14. Bxc3 {[%emt 0:00:10]} Qb6 {[%emt 0:00:06]} 15. Qd2 {[%emt 0:09:37]} c5 {[%emt 0:06:32]} 16. e6 {[%emt 0:04:42]} Bxe6 {[%emt 0:01:13]} 17. Bxg7 {[%emt 0:00:17]} Kxg7 {[%emt 0:00:32]} 18. Ng5 {[%emt 0:00:38]} Rad8 {[%emt 0:04:33]} 19. Qc3+ {[%emt 0:01:26]} Kg8 {[%emt 0:01:12]} 20. Nxe6 {[%emt 0:04:47]} fxe6 {[%emt 0:08:33]} 21. Rxd8 {[%emt 0:23:31]} Rxd8 {[%emt 0:00:29]} 22. b3 {[%emt 0:06:48]} Rd6 {[%emt 0:06:56]} 23. h4 {[%emt 0:07:49]} c4 {[%emt 0:03:54]} 24. Re3 {[%emt 0:02:36]} Qc5 {[%emt 0:10:11]} 25. b4 {[%emt 0:01:33]} Qd4 {[%emt 0:01:46]} 26. Qxd4 {[%emt 0:02:47]} Rxd4 {[%emt 0:00:04]} 27. g3 {[%emt 0:00:18]} Kf7 {[%emt 0:01:31]} 28. Kb2 {[%emt 0:00:39]} a6 {[%emt 0:02:46]} 29. Rf3+ {[%emt 0:01:42]} Ke8 {[%emt 0:02:37]} 30. Re3 {[%emt 0:01:28]} Rd6 {[%emt 0:00:18]} 31. Kc3 {[%emt 0:00:40]} h5 {[%emt 0:01:29]} 32. a4 {[%emt 0:00:33]} Kd7 {[%emt 0:00:35]} 33. axb5 {[%emt 0:01:45]} axb5 {[%emt 0:00:04]} 34. Rf3 {[%emt 0:00:04]} e5 {[%emt 0:01:07]} 35. Rf8 {[%emt 0:00:24]} Rf6 {[%emt 0:00:36]} 36. Rb8 {[%emt 0:00:11]} Rf3+ {[%emt 0:00:56]} 37. Kb2 {[%emt 0:00:02]} Kc6 {[%emt 0:02:16]} 38. Rg8 {[%emt 0:01:22]} Rxf2 {[%emt 0:00:58]} 39. Rxg6+ {[%emt 0:00:11]} Kd5 {[%emt 0:00:08]} 40. Rg5 {[%emt 0:01:15]} Rg2 41. Rxh5 {[%emt 0:01:59]} Rxg3 {[%emt 0:10:19]} 42. Rh7 {[%emt 0:01:25]} Kd6 {[%emt 0:04:13]} 43. Rh6+ {[%emt 0:02:50]} e6 {[%emt 0:00:33]} 44. Rh8 {[%emt 0:07:30]} Rh3 {[%emt 0:00:10]} 45. Rd8+ {[%emt 0:03:24]} Kc6 {[%emt 0:01:18]} 46. Rc8+ {[%emt 0:02:32]} Kd5 {[%emt 0:00:09]} 47. Rd8+ {[%emt 0:01:32]} Ke4 {[%emt 0:00:27]} 48. Re8 {[%emt 0:02:05]} Kd4 {[%emt 0:05:57]} 49. Rd8+ {[%emt 0:01:45]} Ke3 {[%emt 0:00:29]} 50. Rb8 {[%emt 0:00:43]} e4 {[%emt 0:02:23]} 51. Rxb5 {[%emt 0:00:32]} Kf2 {[%emt 0:02:10]} 52. Re5 {[%emt 0:04:21]} e3 {[%emt 0:00:19]} 53. b5 {[%emt 0:00:45]} e2 {[%emt 0:02:47]} 54. b6 {[%emt 0:00:24]} Rxh4 {[%emt 0:00:10]} 55. Rxe6 {[%emt 0:04:20]} Rh6 {[%emt 0:05:42]} 56. b7 {[%emt 0:01:46]} Rxe6 {[%emt 0:01:34]} 57. b8=Q {[%emt 0:00:04]} e1=Q {[%emt 0:00:11]} 58. Qf4+ {[%emt 0:00:17]} Kg2 {[%emt 0:00:48]} 59. Qg4+ {[%emt 0:00:16]} Kh2 {[%emt 0:00:11]} 60. Qh5+ {[%emt 0:00:36]} Kg3 {[%emt 0:00:24]} 61. Qg5+ {[%emt 0:00:29]} Kh3 {[%emt 0:00:27]} 62. Qf5+ {[%emt 0:00:54]} Kh4 {[%emt 0:01:17]} 63. Qf4+ {[%emt 0:00:43]} Kh5 {[%emt 0:00:22]} 64. Qf5+ {[%emt 0:00:13]} Kh6 {[%emt 0:00:15]} 65. Qf4+ {[%emt 0:00:23]} Kg7 {[%emt 0:01:30]} 66. Qg4+ {[%emt 0:01:23]} Kf7 {[%emt 0:01:09]} 67. Qf5+ {[%emt 0:00:15]} Ke7 {[%emt 0:01:10]} 68. Qc5+ {[%emt 0:00:16]} Kd7 {[%emt 0:00:26]} 69. Qd5+ {[%emt 0:00:31]} Rd6 {[%emt 0:01:55]} 70. Qb7+ {[%emt 0:00:10]} Ke6 {[%emt 0:00:32]} 71. Qc8+ {[%emt 0:00:10]} Ke7 {[%emt 0:00:11]} 72. Qb7+ {[%emt 0:01:10]} Rd7 {[%emt 0:00:19]} 0-1